bitfinex/quotes_SOLUSD_20260115
["timestamp","ask_amount","ask_price","bid_price","bid_amount"]
[1768495499214,24.37838513,143.57,143.53,0.5576757]
[1768495499406,27.73255077,143.57,143.53,0.5576757]
[1768495500219,28.24057165,143.57,143.53,0.5576757]
[1768495501309,16.58218652,143.57,143.53,0.5576757]
[1768495501495,3.35416564,143.56,143.52,0.5576757]
[1768495501814,3.35416564,143.56,143.52,0.5276757]
[1768495502017,3.89250376,143.56,143.52,0.5276757]
[1768495502400,34.04064792,143.57,143.52,0.4976757]
[1768495502806,0.5533737,143.55,143.49,3.35416564]
[1768495503118,3.90753934,143.53,143.47,6.96998479]
[1768495503431,6.96767001,143.52,143.47,6.96998479]
[1768495504526,6.96767001,143.52,143.48,0.5576757]
[1768495506403,6.96767001,143.52,143.46,0.5576757]
[1768495506404,3.90753934,143.5,143.46,0.5576757]
[1768495507111,6.96864111,143.5,143.46,0.5576757]
[1768495507805,10.32250987,143.51,143.47,0.5576757]
[1768495508120,16.62753934,143.53,143.47,0.5576757]
[1768495508626,19.68786288,143.52,143.48,0.5576757]
[1768495508816,6.96731109,143.53,143.48,0.5576757]
[1768495509018,23.04089963,143.54,143.5,0.5576757]
[1768495509325,23.59427333,143.54,143.5,0.5576757]
[1768495509624,6.96635327,143.55,143.5,0.5576757]
[1768495509930,12.72,143.56,143.52,0.5576757]
[1768495510914,19.68573334,143.56,143.52,0.5576757]
[1768495511304,12.72,143.56,143.53,0.5576757]
[1768495511721,19.68574151,143.56,143.53,0.5576757]
[1768495512338,0.5533737,143.54,143.49,0.5576757]
[1768495512623,0.5533737,143.53,143.49,0.5576757]
[1768495512823,6.96767001,143.52,143.49,0.5576757]
[1768495514106,6.96718456,143.53,143.49,0.5576757]
[1768495514728,10.3213502,143.53,143.49,0.5576757]
[1768495514931,6.96718456,143.53,143.49,0.5576757]
[1768495515425,19.68718456,143.53,143.49,0.5576757]
[1768495515729,23.0413502,143.53,143.49,0.5576757]
[1768495516027,41.0126853,143.53,143.49,0.5576757]
[1768495517041,0.5533737,143.5,143.42,22.77485284]
[1768495517206,0.5533737,143.5,143.45,6.97105915]
[1768495517711,3.90753934,143.51,143.46,6.97052086]
[1768495517924,0.5533737,143.51,143.45,10.32523569]
[1768495518125,0.5533737,143.51,143.45,6.97107005]
[1768495518126,3.90753934,143.51,143.45,6.97107005]
[1768495518312,7.52172372,143.51,143.45,27.75291083]
[1768495518916,7.52172372,143.51,143.46,0.5576757]
[1768495519634,10.87588936,143.51,143.46,7.52791517]
[1768495519816,10.87588936,143.51,143.47,0.5576757]
[1768495520632,28.29627818,143.51,143.47,0.5576757]
[1768495521031,10.87588936,143.51,143.47,0.5576757]
[1768495522436,3.96399747,143.5,143.45,0.55852723]
[1768495522738,0.60983183,143.48,143.44,0.55852723]
[1768495523031,12.72,143.49,143.46,0.55852723]
[1768495525212,19.68924572,143.49,143.46,0.55852723]
[1768495525412,19.68924572,143.49,143.45,0.57188264]
[1768495525413,23.59798463,143.49,143.45,0.57188264]
[1768495525813,20.24381899,143.49,143.45,0.57188264]
[1768495526625,6.96924572,143.49,143.46,0.57188264]
[1768495527337,0.55457327,143.47,143.43,0.57188264]
[1768495527531,0.55457327,143.47,143.43,7.54384767]
[1768495528054,3.90873891,143.47,143.43,0.57188264]
[1768495528337,16.62873891,143.47,143.43,0.57188264]
[1768495528634,0.55457327,143.46,143.43,0.57188264]
[1768495528840,7.52563612,143.46,143.43,0.57188264]
[1768495529234,10.87980176,143.46,143.43,0.57188264]
[1768495529437,7.52563612,143.46,143.43,0.57188264]
[1768495530851,7.52563612,143.46,143.42,0.57188264]
[1768495532060,20.24563612,143.46,143.42,0.57188264]
[1768495532468,6.97031786,143.47,143.43,0.57188264]
[1768495532630,19.69031786,143.47,143.43,0.57188264]
[1768495532954,12.72,143.47,143.43,7.54347586]
[1768495533138,19.69023938,143.47,143.43,6.97159322]
[1768495533345,23.59897829,143.47,143.43,0.57188264]
[1768495533544,0.55457327,143.46,143.42,7.54440417]
[1768495534149,0.55457327,143.46,143.43,0.57188264]
[1768495534726,7.5255467,143.46,143.43,0.57188264]
[1768495534938,10.87971234,143.46,143.41,7.54486868]
[1768495535145,28.30617267,143.46,143.41,0.57188264]
[1768495535824,10.87971234,143.46,143.41,7.54485466]
[1768495536026,10.87971234,143.46,143.41,6.97297202]
[1768495536234,10.87971234,143.46,143.42,0.57188264]
[1768495537646,6.97031708,143.47,143.43,0.57188264]
[1768495537867,0.55457327,143.5,143.44,3.92604828]
[1768495538033,0.55457327,143.5,143.45,0.57188264]
[1768495538236,0.55457327,143.5,143.46,0.57188264]
[1768495538425,13.27457327,143.51,143.46,0.57188264]
[1768495539055,0.55457327,143.49,143.44,0.57188264]
[1768495539257,0.55457327,143.48,143.42,18.00320323]
[1768495539457,0.55457327,143.48,143.44,0.57188264]
[1768495539656,0.55457327,143.51,143.45,0.57188264]
[1768495539856,16.62873891,143.51,143.45,0.57188264]
[1768495540158,16.62873891,143.51,143.46,0.57188264]
[1768495540657,0.55457327,143.5,143.46,0.57188264]
[1768495540956,0.55457327,143.48,143.44,7.54335053]
[1768495541158,3.90873891,143.49,143.45,0.57188264]
[1768495541358,7.52388861,143.49,143.45,7.54284778]
[1768495541669,3.35416564,143.5,143.46,0.57188264]
[1768495541670,0.55457327,143.5,143.46,0.57188264]
[1768495541960,7.52326817,143.5,143.46,0.57188264]
[1768495542557,10.87743381,143.5,143.46,0.57188264]
[1768495543659,10.87743381,143.5,143.46,7.54231265]
[1768495543957,7.52326817,143.5,143.46,7.54231265]
[1768495544143,0.55457327,143.5,143.46,7.54231265]
[1768495544866,7.5232515,143.5,143.46,7.54231265]
[1768495545041,0.55457327,143.49,143.44,0.57188264]
[1768495545242,10.87741714,143.5,143.45,6.97102268]
[1768495545448,10.87741714,143.5,143.46,0.57188264]
[1768495546149,10.87741714,143.5,143.45,0.57188264]
[1768495546150,3.90873891,143.49,143.45,0.57188264]
[1768495546358,3.90873891,143.47,143.42,13.29188264]
[1768495546666,0.55457327,143.47,143.43,0.57188264]
[1768495547361,5.8014371,143.47,143.43,7.54357409]
[1768495548360,12.771634,143.47,143.43,7.54357409]
[1768495549263,12.771634,143.47,143.44,0.57188264]
[1768495549637,7.52477017,143.47,143.44,0.57188264]
[1768495550045,0.55457327,143.47,143.44,0.57188264]
[1768495550769,12.72,143.48,143.45,7.55573716]
[1768495551066,12.72,143.48,143.45,0.58466711]
[1768495551448,6.96971893,143.48,143.45,0.58466711]
[1768495551647,12.8302625,143.49,143.45,7.55570168]
[1768495552259,12.8302625,143.49,143.45,0.58466711]
[1768495552458,5.24686383,143.48,143.45,0.58466711]
[1768495552772,5.86095549,143.48,143.45,0.58466711]
[1768495553148,0.61409166,143.48,143.45,0.58466711]
[1768495554575,12.8302625,143.49,143.45,0.58466711]
[1768495555774,0.61409166,143.48,143.45,7.55565467]
[1768495556078,0.61409166,143.48,143.45,0.58466711]
[1768495557150,0.61409166,143.47,143.44,0.58466711]
[1768495557662,12.83081998,143.48,143.44,0.58466711]
[1768495558480,30.2548512,143.48,143.44,0.58466711]
[1768495558972,24.39389571,143.48,143.44,0.58466711]
[1768495559175,6.96986449,143.48,143.44,7.55609612]
[1768495559650,12.83081998,143.48,143.44,0.58466711]
[1768495559850,7.58395615,143.48,143.44,0.58466711]
[1768495560372,18.0350054,143.51,143.45,0.58466711]
[1768495560578,0.61409166,143.5,143.45,0.58466711]
[1768495560788,0.61409166,143.49,143.45,0.58466711]
[1768495561377,12.82975701,143.5,143.45,0.58466711]
[1768495562684,12.82975701,143.5,143.45,7.55559662]
[1768495563074,0.61409166,143.49,143.44,7.5560113]
[1768495563262,0.61409166,143.49,143.45,0.58466711]
[1768495563662,7.58289318,143.5,143.46,0.58466711]
[1768495565480,7.58289318,143.5,143.46,7.55524164]
[1768495567670,6.96818274,143.51,143.47,0.58466711]
[1768495568057,20.30196474,143.52,143.47,0.58466711]
[1768495568373,7.58196474,143.52,143.48,0.58466711]
[1768495568563,6.96761867,143.53,143.48,0.58466711]
[1768495568777,20.30171033,143.53,143.49,0.58466711]
[1768495569283,0.61409166,143.51,143.47,7.55441423]
[1768495569485,0.61409166,143.5,143.47,0.58466711]
[1768495569784,0.61409166,143.5,143.45,5.24686383]
[1768495569785,5.86095549,143.51,143.46,0.58466711]
[1768495570569,7.58273277,143.5,143.46,7.55524179]
[1768495572886,7.58238393,143.51,143.47,7.55471183]
[1768495573585,5.85809646,143.54,143.48,0.58466711]
[1768495573803,0.61409166,143.52,143.48,0.58466711]
[1768495574096,0.61409166,143.52,143.46,7.55516847]
[1768495574282,0.61409166,143.5,143.46,0.58466711]
[1768495575191,0.61409166,143.48,143.45,6.97078111]
[1768495575488,0.55409167,143.48,143.45,6.97078111]
[1768495575689,6.96885281,143.5,143.46,0.58466711]
[1768495576507,6.96829669,143.51,143.47,0.58466711]
[1768495577614,7.58238835,143.51,143.47,0.58466711]
[1768495577910,7.58238835,143.51,143.47,7.55453204]
[1768495578087,6.96770934,143.52,143.48,0.58466711]
[1768495578289,7.581801,143.52,143.48,0.58466711]
[1768495579315,19.68736549,143.53,143.49,0.58466711]
[1768495579486,20.30145715,143.53,143.49,0.58466711]
[1768495580184,0.61409166,143.52,143.48,6.96957797]
[1768495580390,0.61409166,143.52,143.47,7.55446266]
[1768495580602,0.61409166,143.52,143.48,0.58466711]
[1768495580910,20.27605815,143.53,143.49,0.60377144]
[1768495581209,0.58869266,143.52,143.48,7.57331314]
[1768495581509,0.58869266,143.51,143.47,0.60377144]
[1768495583299,0.58869266,143.51,143.48,0.60377144]
[1768495583610,6.96730741,143.53,143.48,0.60377144]
[1768495583793,0.58869266,143.52,143.48,0.60377144]
[1768495584516,6.96730741,143.53,143.49,0.60377144]
[1768495584716,20.27556257,143.54,143.5,0.57321133]
[1768495586318,7.55556257,143.54,143.5,0.57321133]
[1768495587302,0.57176957,143.56,143.52,0.57321133]
[1768495587594,19.68583891,143.56,143.52,0.57321133]
[1768495587806,20.25760848,143.56,143.52,0.57321133]
[1768495588014,7.53718555,143.57,143.53,0.57321133]
[1768495589517,0.57176957,143.56,143.53,0.57321133]
[1768495589726,0.57176957,143.55,143.51,0.57321133]
[1768495589916,0.57176957,143.54,143.49,7.542134]
[1768495590103,0.57176957,143.54,143.5,5.81721613]
[1768495590310,7.5386788,143.54,143.5,0.57321133]
[1768495591119,7.5386788,143.54,143.5,7.54172527]
[1768495591422,0.57176957,143.54,143.5,12.78573007]
[1768495592112,13.29176957,143.55,143.51,0.57321133]
[1768495592512,12.72,143.56,143.52,0.57321133]
[1768495593026,13.29176957,143.56,143.52,0.57321133]
[1768495593724,20.25764407,143.56,143.52,0.57321133]
[1768495593912,20.25764407,143.56,143.52,7.5407643]
[1768495594229,7.53764407,143.56,143.52,7.5407643]
[1768495595823,0.57176957,143.56,143.52,7.5407643]
[1768495596026,0.57176957,143.56,143.52,12.7847691]
[1768495596226,7.53674725,143.58,143.54,0.57321133]
[1768495596917,19.78427391,143.59,143.54,0.57321133]
[1768495597119,0.1,143.59,143.55,0.57321133]
[1768495597618,0.1,143.59,143.57,0.57321133]
[1768495599420,0.1,143.59,143.57,7.53827412]
[1768495599625,0.1,143.59,143.58,0.57321133]
[1768495599810,13.29176957,143.61,143.58,6.96475832]
[1768495600011,6.96290067,143.62,143.58,7.53796965]
[1768495600229,6.96290067,143.62,143.59,0.57321133]
[1768495600438,13.27176957,143.63,143.59,0.57321133]
[1768495600613,13.27176957,143.63,143.59,5.81721613]
[1768495600820,12.7,143.63,143.6,0.57321133]
[1768495601636,19.66238052,143.63,143.6,0.57321133]
[1768495601939,20.23415009,143.63,143.59,12.78142388]
[1768495602618,20.23415009,143.63,143.59,7.53741908]
[1768495602819,12.7,143.63,143.6,7.53689333]
[1768495603138,0.1,143.64,143.61,0.57321133]
[1768495603826,0.1,143.65,143.63,0.57321133]
[1768495604430,0.1,143.66,143.64,0.57321133]
[1768495604727,1e-08,143.66,143.64,0.57321133]
[1768495604924,1e-08,143.66,143.64,5.2440048]
[1768495605127,1e-08,143.66,143.62,24.36986491]
[1768495605328,1e-08,143.66,143.63,5.2440048]
[1768495605519,1e-08,143.66,143.62,29.61386971]
[1768495605706,1e-08,143.66,143.64,6.96184906]
[1768495606610,1e-08,143.66,143.61,17.40780332]
[1768495606810,0.57176958,143.66,143.62,0.57321133]
[1768495607420,1e-08,143.66,143.63,0.57321133]
[1768495611638,0.58982652,143.65,143.6,0.60915151]
[1768495611815,3.34851185,143.66,143.61,0.60915151]
[1768495611816,1e-08,143.66,143.61,0.60915151]
[1768495612022,1e-08,143.66,143.61,3.95766335]
[1768495612224,0.58982653,143.66,143.62,0.60915151]
[1768495614325,6.96136442,143.65,143.62,0.60915151]
[1768495614925,0.58982653,143.66,143.63,0.60915151]
[1768495614926,1e-08,143.66,143.63,0.60915151]
[1768495615343,6.96106165,143.66,143.63,0.60915151]
[1768495615551,0.58982652,143.65,143.61,0.60915151]
[1768495616317,0.58982652,143.65,143.61,7.57232672]
[1768495616524,7.55121577,143.65,143.61,7.57232672]
[1768495617346,7.55121577,143.65,143.61,0.60915151]
[1768495617828,0.58982652,143.65,143.62,0.60915151]
[1768495618235,1e-08,143.66,143.63,0.60915151]
[1768495618525,1e-08,143.66,143.65,6.96136442]
[1768495619351,1e-08,143.66,143.65,7.57051593]
[1768495620849,1e-08,143.66,143.65,6.96136442]
[1768495621225,1e-08,143.66,143.63,27.71630322]
[1768495621423,1e-08,143.66,143.65,0.60915151]
[1768495622159,1e-08,143.66,143.65,7.57051593]
[1768495623055,1e-08,143.66,143.65,6.96136442]
[1768495623545,1e-08,143.66,143.65,0.60915151]
[1768495623755,0.58982653,143.66,143.61,10.92081885]
[1768495623929,0.58982653,143.66,143.62,6.9626501]
[1768495624135,1e-08,143.66,143.63,0.60915151]
[1768495626352,1e-08,143.66,143.63,7.5713618]
[1768495626725,1e-08,143.66,143.64,0.60915151]
[1768495629054,7.54992903,143.68,143.64,7.57088002]
[1768495629551,9.80932241,143.7,143.65,0.60915151]
[1768495629751,10.39914893,143.7,143.65,0.60915151]
[1768495630249,0.58982652,143.69,143.65,0.60915151]
[1768495630836,10.8981517,143.69,143.65,0.60915151]
[1768495631047,7.54963986,143.69,143.65,0.60915151]
[1768495631844,7.54963986,143.69,143.65,7.57045778]
[1768495632038,9.80912073,143.7,143.66,0.60915151]
[1768495632237,9.80912073,143.7,143.67,0.60915151]
[1768495632238,2.85,143.7,143.67,0.60915151]
[1768495632438,2.85,143.7,143.68,0.60915151]
[1768495634456,2.85,143.7,143.68,7.56904476]
[1768495634753,2.23210719,143.7,143.69,0.60915151]
[1768495635057,1e-08,143.7,143.69,7.53857805]
[1768495635243,1e-08,143.7,143.68,10.30825092]
[1768495635845,1e-08,143.7,143.69,6.95942654]
[1768495636142,1e-08,143.7,143.69,10.30793838]
[1768495636536,0.58982652,143.76,143.69,10.30793838]
[1768495636767,0.58982652,143.75,143.69,24.35799289]
[1768495637058,0.58982652,143.74,143.69,10.91708989]
[1768495637354,7.54683222,143.74,143.69,10.91708989]
[1768495637569,7.54683222,143.74,143.69,0.60915151]
[1768495637570,0.58982652,143.73,143.69,0.60915151]
[1768495638254,0.58982652,143.73,143.68,6.95987744]
[1768495638634,0.58982652,143.71,143.66,3.95766335]
[1768495639052,0.58982652,143.7,143.66,10.91848857]
[1768495639245,0.58982652,143.7,143.66,7.56997673]
[1768495639838,0.58982652,143.7,143.66,10.91848857]
[1768495640033,0.58982652,143.69,143.64,0.60915151]
[1768495640239,0.58982652,143.69,143.64,3.95766335]
[1768495640455,0.58982652,143.69,143.64,7.57086854]
[1768495640653,0.58982652,143.68,143.64,7.57086854]
[1768495641457,0.58982652,143.68,143.64,0.60915151]
[1768495641837,0.57546419,143.66,143.61,0.60725194]
[1768495642045,0.57546419,143.65,143.61,10.91878961]
[1768495642242,0.57546419,143.65,143.61,7.57027777]
[1768495643742,0.57546419,143.64,143.6,6.96364064]
[1768495644244,0.57546419,143.64,143.6,6.96372532]
[1768495644567,10.87689969,143.65,143.6,7.55279509]
[1768495645267,7.52876703,143.64,143.6,7.55279509]
[1768495646764,0.56690997,143.64,143.6,7.55279509]
[1768495646956,0.56690997,143.65,143.61,0.58906977]
[1768495647266,0.56690997,143.65,143.62,6.96281854]
[1768495647765,0.56690997,143.64,143.58,18.00036781]
[1768495647971,0.56690997,143.63,143.59,6.96421612]
[1768495648265,0.56690997,143.64,143.61,6.96328027]
[1768495648566,0.56690997,143.64,143.6,7.55268422]
[1768495649549,7.52907422,143.64,143.6,7.55268422]
[1768495650165,7.52907422,143.64,143.6,0.58906977]
[1768495650466,0.56690997,143.64,143.6,7.55268071]
[1768495651547,7.52888552,143.64,143.6,7.55268071]
[1768495652970,0.56690997,143.63,143.6,6.96361094]
[1768495654072,0.56690997,143.63,143.59,7.55313919]
[1768495654268,0.56690997,143.62,143.58,6.96456888]
[1768495654863,0.56690997,143.62,143.56,0.58906977]
[1768495654864,0.56690997,143.61,143.56,0.58906977]
[1768495655101,0.56690997,143.59,143.55,7.55509547]
[1768495655265,0.56690997,143.59,143.55,10.90360731]
[1768495655457,0.56690997,143.59,143.55,6.9660257]
[1768495655656,0.56690997,143.59,143.55,7.55509547]
[1768495656176,0.50690998,143.59,143.55,7.55509547]
[1768495656371,0.50690998,143.59,143.55,10.90360731]
[1768495656775,0.44690999,143.59,143.55,10.90360731]
[1768495657674,3.34851184,143.62,143.55,6.96613107]
[1768495657858,3.34851184,143.58,143.53,0.58906977]
[1768495658057,12.7,143.62,143.53,3.93758161]
[1768495658263,12.7,143.62,143.54,0.58906977]
[1768495658461,3.34851184,143.6,143.54,7.55562206]
[1768495658776,0.56690997,143.58,143.54,10.9041339]
[1768495660677,0.56690997,143.57,143.54,6.96655229]
[1768495661056,0.56690997,143.57,143.54,10.31506413]
[1768495661454,0.56690997,143.56,143.5,6.96846788]
[1768495661648,0.56690997,143.54,143.49,3.93758161]
[1768495662177,0.56690997,143.54,143.5,10.90590355]
[1768495662472,0.56690997,143.54,143.5,7.55739171]
[1768495662675,0.56690997,143.53,143.48,7.1694751]
[1768495662872,0.56690997,143.53,143.48,10.51798694]
[1768495663172,0.56690997,143.53,143.49,3.93758161]
[1768495663549,0.56690997,143.53,143.5,6.96864111]
[1768495663962,7.53331919,143.55,143.5,10.90622272]
[1768495664153,0.56690997,143.54,143.5,28.3278255]
[1768495664368,0.56690997,143.56,143.52,0.58906977]
[1768495664555,0.56690997,143.56,143.51,0.58906977]
[1768495664762,0.56690997,143.56,143.51,3.93758161]
[1768495665554,7.53316436,143.55,143.51,7.55721977]
[1768495666056,0.56690997,143.55,143.51,6.96815]
[1768495666254,0.56690997,143.55,143.51,10.31666184]
[1768495666451,0.56690997,143.55,143.49,0.58906977]
[1768495666679,0.56690997,143.55,143.49,10.90653548]
[1768495666680,0.56690997,143.54,143.49,10.90653548]
[1768495666883,0.56690997,143.54,143.5,6.96852828]
[1768495667057,0.56690997,143.55,143.52,3.34851184]
[1768495667677,7.53327478,143.55,143.51,10.90571006]
[1768495668274,0.56690997,143.55,143.51,10.90571006]
[1768495668681,7.53315047,143.55,143.51,10.90571006]
[1768495668979,7.53315047,143.55,143.51,0.58906977]
[1768495669663,0.56690997,143.54,143.5,7.55761547]
[1768495669865,0.56690997,143.54,143.49,7.55816729]
[1768495670271,0.56690997,143.54,143.49,12.79836532]
[1768495670882,0.56690997,143.54,143.49,7.55816729]
[1768495671257,0.56690997,143.54,143.49,12.79836532]
[1768495671657,0.56730239,143.53,143.49,12.79836532]
[1768495671862,0.56730239,143.53,143.48,17.62358447]
[1768495671863,0.56730239,143.53,143.48,0.2]
[1768495672078,0.56730239,143.51,143.48,0.2]
[1768495673992,7.53555543,143.51,143.48,0.2]
[1768495674154,0.56730239,143.51,143.48,0.2]
[1768495674573,6.96784287,143.52,143.48,12.99372355]
[1768495674782,0.56730239,143.51,143.48,0.2]
[1768495675361,0.56730239,143.51,143.48,7.16953819]
[1768495676684,0.56730239,143.53,143.49,5.82421822]
[1768495676884,5.80750042,143.55,143.5,0.58402019]
[1768495677058,0.56730239,143.54,143.5,0.58402019]
[1768495677589,0.56730239,143.54,143.49,0.58402019]
[1768495677769,0.56730239,143.54,143.49,5.82421822]
[1768495678681,7.53407621,143.54,143.5,6.96864111]
[1768495679484,0.56730239,143.54,143.5,12.79285933]
[1768495679882,0.56730239,143.54,143.5,7.5526613]
[1768495680086,0.56730239,143.54,143.5,12.79285933]
[1768495680383,0.56730239,143.54,143.5,6.96864111]
[1768495680384,0.56730239,143.53,143.5,6.96864111]
[1768495680794,7.53267214,143.57,143.53,0.58402019]
[1768495681387,0.56730239,143.57,143.53,0.58402019]
[1768495681587,7.53226978,143.58,143.54,12.79074993]
[1768495682086,7.53226978,143.58,143.5,12.7]
[1768495682087,0.56730239,143.57,143.53,6.96698249]
[1768495682263,0.56730239,143.56,143.52,7.5515586]
[1768495682663,0.56730239,143.56,143.51,5.24019803]
[1768495682889,0.56730239,143.55,143.49,13.28402019]
[1768495683171,0.56730239,143.54,143.49,12.79327579]
[1768495683569,7.53410665,143.54,143.5,6.96859924]
[1768495683771,0.56730239,143.54,143.5,12.20879727]
[1768495683981,7.53403479,143.54,143.5,12.20879727]
[1768495684186,7.53403479,143.54,143.5,12.79281746]
[1768495686892,17.41254488,143.58,143.52,0.58402019]
[1768495687093,0.56730239,143.6,143.54,0.58402019]
[1768495687299,0.56730239,143.58,143.54,5.82421822]
[1768495687598,0.56730239,143.58,143.54,5.24019803]
[1768495687798,7.53241654,143.58,143.54,5.24019803]
[1768495688781,0.56730239,143.58,143.55,5.24019803]
[1768495688985,7.53207938,143.58,143.55,5.24019803]
[1768495689583,7.53207938,143.58,143.54,12.79088824]
[1768495690182,0.56730239,143.6,143.56,5.82421822]
[1768495690699,179.5,143.7,143.54,6.96667002]
[1768495690700,0.56730239,143.64,143.59,0.58402019]
[1768495690902,0.56730239,143.63,143.59,5.82421822]
[1768495691584,0.56730239,143.63,143.59,5.24019803]
[1768495691899,7.52963752,143.63,143.59,12.78834602]
[1768495692893,7.52963752,143.63,143.59,5.82421822]
[1768495693091,7.52963752,143.63,143.6,5.24019803]
[1768495693897,7.52963752,143.63,143.59,7.54817554]
[1768495694219,7.52963752,143.63,143.59,12.78837357]
[1768495694507,7.52963752,143.63,143.6,5.24019803]
[1768495694806,0.56730239,143.63,143.6,12.20381222]
[1768495694997,6.96198753,143.64,143.6,12.78783241]
[1768495695193,0.56730239,143.65,143.61,0.58402019]
[1768495695394,0.56730239,143.65,143.61,5.82421822]
[1768495695608,6.9611642,143.66,143.62,5.82421822]
[1768495695782,7.52786828,143.67,143.63,5.24019803]
[1768495695984,0.56730239,143.67,143.63,5.82421822]
[1768495696198,20.22689949,143.69,143.64,5.82421822]
[1768495696789,0.56730239,143.68,143.64,5.82421822]
[1768495697104,0.56730239,143.67,143.63,5.24019803]
[1768495697605,0.56730239,143.67,143.63,12.20251831]
[1768495697797,0.56730239,143.67,143.63,12.7865385]
[1768495699098,0.56730239,143.68,143.64,5.82421822]
[1768495699803,0.56730239,143.68,143.65,5.24019803]
[1768495700131,7.52723866,143.68,143.64,5.24019803]
[1768495701303,0.54892383,143.67,143.64,5.24019803]
[1768495701604,0.54892383,143.66,143.61,0.58970881]
[1768495701804,0.54892383,143.65,143.61,0.58970881]
[1768495702509,0.54892383,143.65,143.61,5.82990684]
[1768495702702,7.50898808,143.68,143.64,0.58970881]
[1768495703004,0.54892383,143.68,143.65,5.24019803]
[1768495703693,20.20793949,143.7,143.65,12.79121911]
[1768495703885,0.54892383,143.69,143.65,5.82990684]
[1768495704089,0.54892383,143.69,143.65,12.79117447]
[1768495704634,0.54892383,143.69,143.65,0.59668968]
[1768495704790,0.54892383,143.69,143.65,12.79815456]
[1768495704996,7.5236835,143.7,143.66,5.83688771]
[1768495705216,7.5236835,143.7,143.66,0.59668968]
[1768495707015,0.56466784,143.69,143.65,12.79815456]
[1768495707409,0.56466784,143.69,143.65,0.59668968]
[1768495707719,0.56466784,143.68,143.63,7.55895958]
[1768495708194,0.56466784,143.68,143.63,12.79915761]
[1768495708386,0.56466784,143.68,143.64,12.79867892]
[1768495709100,0.56466784,143.67,143.63,5.83688771]
[1768495709613,0.56466784,143.67,143.64,6.96172543]
[1768495709815,20.22424862,143.69,143.65,5.83688771]
[1768495710704,7.52461283,143.68,143.64,12.79861314]
[1768495710912,0.56466784,143.68,143.65,5.24019803]
[1768495712215,7.52378733,143.7,143.66,0.59668968]
[1768495712521,7.52378733,143.7,143.66,5.83688771]
[1768495712897,7.52311597,143.72,143.67,5.83688771]
[1768495713498,7.52311597,143.72,143.67,0.59668968]
[1768495713700,0.56466784,143.71,143.67,5.83688771]
[1768495714612,0.56466784,143.71,143.67,12.79697626]
[1768495715103,7.52318945,143.71,143.67,12.79697626]
[1768495715816,6.95813358,143.72,143.68,0.59668968]
[1768495716022,6.95813358,143.72,143.68,5.83688771]
[1768495716203,7.52280142,143.72,143.68,5.83688771]
[1768495716804,7.52280142,143.72,143.68,12.79661284]
[1768495717007,6.95763061,143.73,143.69,5.83688771]
[1768495717209,7.52229845,143.73,143.69,5.83688771]
[1768495718330,19.75708259,143.74,143.71,0.59668968]
[1768495718623,0.1,143.74,143.72,0.59668968]
[1768495718922,0.1,143.74,143.7,5.83688771]
[1768495719331,0.56466784,143.73,143.69,12.79615026]
[1768495719526,7.62196287,143.74,143.7,0.59668968]
[1768495719731,0.1,143.74,143.71,5.83688771]
[1768495720523,1e-08,143.74,143.72,12.79486154]
[1768495721224,1e-08,143.74,143.64,10.58428659]
[1768495721225,7.52204487,143.74,143.69,12.79601335]
[1768495721427,7.52204487,143.74,143.7,6.95894142]
[1768495721630,0.56466785,143.74,143.7,7.55530824]
[1768495721819,1e-08,143.74,143.7,5.83688771]
[1768495722623,0.56466785,143.74,143.69,13.29668968]
[1768495722816,0.56466785,143.74,143.7,12.79571748]
[1768495723431,0.56466785,143.74,143.7,7.55551945]
[1768495723635,0.56466785,143.74,143.7,12.79571748]
[1768495723931,7.52170679,143.74,143.7,12.79571748]
[1768495724432,0.56466785,143.74,143.7,12.79571748]
[1768495725510,7.52169133,143.74,143.7,12.79571748]
[1768495725716,7.52169133,143.74,143.7,7.55551945]
[1768495725917,7.52169133,143.74,143.7,12.79571748]
[1768495726117,0.56466785,143.74,143.7,12.79571748]
[1768495727940,0.56466785,143.74,143.71,5.83688771]
[1768495728126,0.56466785,143.74,143.71,12.79528358]
[1768495729311,0.56466785,143.74,143.71,10.89937199]
[1768495730122,1e-08,143.74,143.71,10.89937199]
[1768495730436,1e-08,143.74,143.72,0.59668968]
[1768495730617,1e-08,143.74,143.72,3.94097612]
[1768495730823,0.56466784,143.76,143.73,3.34428644]
[1768495732936,0.56466784,143.76,143.73,10.30172024]
[1768495733947,0.56962056,143.77,143.74,0.57589031]
[1768495734323,0.56962056,143.77,143.73,10.30172024]
[1768495734644,0.56962056,143.77,143.73,10.87761055]
[1768495735159,6.95507024,143.78,143.75,3.34428644]
[1768495735160,0.56962056,143.78,143.75,3.34428644]
[1768495735445,0.56962056,143.78,143.75,3.92017675]
[1768495735616,0.56962056,143.78,143.75,0.57589031]
[1768495735817,0.56962056,143.77,143.74,0.57589031]
[1768495736017,7.52477876,143.78,143.74,3.92017675]
[1768495736247,0.56962056,143.78,143.74,3.92017675]
[1768495736442,0.56962056,143.78,143.74,0.57589031]
[1768495736650,6.95428873,143.8,143.76,0.57589031]
[1768495736945,6.95428873,143.8,143.76,0.54589031]
[1768495736946,7.52390929,143.8,143.76,0.54589031]